Cogmind - Beta 15 @@@ ROGUE MODE // 2025.06.21 @ 22:42:50 Player: RNGesus Result: Self-destructed Performance ------------- Evolutions (5) 2500 Regions Visited (18) 3600 Robots Destroyed (168) 840 Value Destroyed (4999) 4999 Prototype IDs (66) 1320 Alien Tech Used (0) 0 Bonus (1378) 1378 TOTAL SCORE: 14637 Bonus ------- High Alert Combat Kills 63 Follower Combat Kills 400 Aligned with FarCom 300 Destroyed Z-Imprinter 1000 Friendly Fire -385 Cogmind --------- Core Integrity 925/1000 Matter 264/300 Energy 139/150 System Corruption 6% Temperature Cool (0) Movement Flying (30) Location -5/Factory Parts ------- > --- POWER (1) -------- Micro Fission Core > --- PROPULSION (5) --- Cooled VTOL Module Cooled VTOL Module Nuclear Pulse Thruster > --- UTILITY (9) ------ Lightpack 2.0 Machine Analyzer Long-range Sensor Array Advanced Signal Interpreter Improved System Shield Advanced System Shield > --- WEAPON (2) ------- Great Axe > --- INVENTORY (40) --- Zionite Light DM Reactor Zionite Light DM Reactor Zionite Light DM Reactor Zionite Light DM Reactor Zionite Biocell (600) Zionite Biocell (600) Gravity Neutralizer Enhanced Optical Array Long-range Sensor Array Improved Signal Interpreter Surveybot 24 Scanner Surveybot 24 Chip Makeshift Cloaking Device Zionite Weapon Casing Zionite Weapon Casing Zionite Heavy Carapace Hacking Suite Improved Hacking Suite System Shield Advanced System Shield Authchip [Weapon] AWS/Autocannon Improved Grenade Launcher Rocket Array Mini Smartbomb Launcher RU-N14's Throwing Claymores (3) Powered Hammer Heavy Pick Peak State ------------ > --- POWER ------------ Zionite Light DM Reactor > --- PROPULSION ------- Improved VTOL Module Cooled VTOL Module Cooled VTOL Module Cooled VTOL Module Nuclear Pulse Thruster > --- UTILITY ---------- Lightpack 2.0 Machine Analyzer Long-range Sensor Array Advanced Signal Interpreter Makeshift Hacking Suite System Shield Improved System Shield > --- WEAPON ----------- Mini Smartbomb Launcher Great Axe > --- INVENTORY -------- Micro Nuclear Core Zionite Light DM Reactor Zionite Light DM Reactor Zionite Light DM Reactor Zionite Biocell Zionite Biocell Gravity Neutralizer Enhanced Optical Array Long-range Sensor Array Improved Signal Interpreter Surveybot 24 Scanner Surveybot 24 Chip ECM Suite Improved Reaction Control System Makeshift Cloaking Device Zionite Weapon Casing Zionite Weapon Casing Zionite Heavy Carapace Zionite Heavy Carapace Improved Thermal Defense Suite Authchip [Weapon] AS-neutralizer No. 17b AWS/Autocannon Improved Grenade Launcher Rocket Array RU-N14's Throwing Claymores Powered Hammer Heavy Pick [Rating: 119] Favorites ----------- Power Light Ion Engine Engine Light Ion Engine Power Core Enhanced Nuclear Core Reactor Zionite Light DM Reactor Propulsion Light Treads Treads Light Treads Leg Advanced Myomer Leg Hover Unit Improved Airjet Flight Unit Cooled VTOL Module Utility Machine Analyzer Device Seismic Detector Storage High-capacity Storage Unit Processor Machine Analyzer Hackware Hacking Suite Protection Improved Light Armor Plating Weapon Improved Assault Rifle Energy Gun Small Laser Energy Cannon Advanced Beam Cannon Ballistic Gun Improved Assault Rifle Launcher Mini Smartbomb Launcher Special Weapon Improved Plasma Cutter Impact Weapon Powered Hammer Slashing Weapon Chainsword Piercing Weapon Heavy Pick Special Melee Weapon Datajack Build | -11 -10 -10 -9 -9 -9 -8 -8 -8 -7 -7 -7 -6 -6 -6 -6 -6 -5 -5 ------- Run | Yrd Mat Min Mat Min Exi Min Mat Sto Fac Was Fac Fac Low Low Zio Dee Pro Fac Slots Evolved 10 | . . . 2 . . . 2 . 2 . . 2 . . . . . 2 Power . | . . . . . . . . . . . . . . . . . . . Propulsion 3 | . . . 1 . . . 1 . . . . . . . . . . 1 Utility 7 | . . . 1 . . . 1 . 2 . . 2 . . . . . 1 Weapon . | . . . . . . . . . . . . . . . . . . . Parts Attached 169 | 6 5 4 22 1 13 1 19 13 11 . 9 29 1 . 5 17 . 13 Power 16 | 1 1 . 1 1 2 . 1 1 1 . 1 2 . . . 3 . 1 Engine 5 | 1 1 . 1 . 1 . . . 1 . . . . . . . . . Core 8 | . . . . 1 1 . 1 . . . 1 2 . . . 1 . 1 Reactor 3 | . . . . . . . . 1 . . . . . . . 2 . . Propulsion 47 | 2 . 1 6 . 2 . 9 6 6 . 3 9 . . . 3 . . Treads 20 | 2 . 1 6 . 1 . 5 5 . . . . . . . . . . Leg 4 | . . . . . 1 . 3 . . . . . . . . . . . Wheel . | . . . . . . . . . . . . . . . . . . . Hover 10 | . . . . . . . . 1 2 . 1 5 . . . 1 . . Flight 13 | . . . . . . . 1 . 4 . 2 4 . . . 2 . . Utility 59 | 1 3 . 5 . 3 . 6 1 2 . 3 15 . . . 9 . 11 Device 14 | . 1 . . . . . 2 . 1 . . 5 . . . 3 . 2 Storage 4 | 1 1 . . . . . . 1 . . . . . . . 1 . . Processor 6 | . . . . . 1 . 1 . . . . 2 . . . 1 . 1 Hackware 18 | . . . . . . . 1 . 1 . 2 7 . . . . . 7 Protection 17 | . 1 . 5 . 2 . 2 . . . 1 1 . . . 4 . 1 Artifact . | . . . . . . . . . . . . . . . . . . . Weapon 47 | 2 1 3 10 . 6 1 3 5 2 . 2 3 1 . 5 2 . 1 Energy Gun 3 | 1 . . . . . . . . . . . . . . . 2 . . Energy Cannon 3 | . . 3 . . . . . . . . . . . . . . . . Ballistic Gun 18 | 1 1 . 8 . 1 1 3 3 . . . . . . . . . . Ballistic Cannon . | . . . . . . . . . . . . . . . . . . . Launcher 9 | . . . 1 . 1 . . 1 . . 2 . 1 . 3 . . . Special Weapon 3 | . . . . . . . . 1 . . . . . . 2 . . . Impact Weapon 1 | . . . . . . . . . . . . 1 . . . . . . Slashing Weapon 8 | . . . 1 . 3 . . . 2 . . 1 . . . . . 1 Piercing Weapon 1 | . . . . . . . . . . . . 1 . . . . . . Special Melee Weapon 1 | . . . . . 1 . . . . . . . . . . . . . Unidentified Prototypes 25 | . . 1 1 . . . 3 2 2 . 1 1 . . 3 8 . 3 Parts Lost 36 | . 2 1 . . 6 . 6 1 . . 5 8 . . . 4 . 3 Power 4 | . . . . . 2 . . 1 . . 1 . . . . . . . Propulsion 19 | . . 1 . . 4 . 3 . . . 3 5 . . . 2 . 1 Utility 9 | . 1 . . . . . 2 . . . 1 1 . . . 2 . 2 Weapon 4 | . 1 . . . . . 1 . . . . 2 . . . . . . Highest Loss Streak 4 | . 2 1 . . 4 . 3 1 . . 3 3 . . . 4 . 2 To Critical Strikes 3 | . . . . . 3 . . . . . . . . . . . . . Average Backups 20 | 1 10 15 16 18 14 11 12 13 19 25 26 31 34 34 35 32 33 30 Power 1 | . 1 1 1 1 . . . . 1 2 2 4 5 5 4 4 4 3 Propulsion 1 | . 1 1 1 2 1 . . 1 1 1 2 5 3 3 3 2 1 . Utility 8 | . 1 1 4 6 4 4 5 6 8 11 11 13 17 17 17 16 20 19 Weapon 7 | . 5 10 9 8 8 6 6 4 6 7 7 7 8 8 9 9 8 7 Tool/Special . | . . . . . . . . . . . . . . . . . . . Unused Backups 58 | . 1 4 9 . 7 . . . 2 1 4 3 1 . 1 5 . 20 Power 10 | . . 1 1 . 3 . . . . . . . 1 . 1 1 . 2 Propulsion . | . . . . . . . . . . . . . . . . . . . Utility 32 | . . . 3 . 2 . . . 2 1 3 3 . . . 3 . 15 Weapon 16 | . 1 3 5 . 2 . . . . . 1 . . . . 1 . 3 Tool/Special . | . . . . . . . . . . . . . . . . . . . Average Slot Usage (%) 88 | . 98 100 99 100 88 86 94 91 73 84 81 82 80 80 81 74 73 76 Engine 3 | . 14 14 11 1 . . . . 3 7 . . . . . . . . Core 4 | . . . . 9 10 11 8 . . . 6 5 6 6 6 2 . . Reactor 1 | . . . . . . . . 7 . . . . . . . 3 6 4 Treads 17 | . 28 28 33 33 27 11 17 35 2 . . . . . . . . . Leg 1 | . . . . . 2 11 15 . . . . . . . . . . . Hover 3 | . . . . . . . . . . . 14 22 . . . . . . Flight 7 | . . . . . . . . . 26 30 15 2 26 26 26 25 26 26 Device 3 | . 9 . . . . . 1 . 6 7 6 5 6 6 6 5 6 4 Storage 9 | . 14 14 11 11 11 11 9 9 7 7 7 6 6 6 6 6 6 5 Processor 7 | . . . . . . 11 15 14 7 7 7 12 13 13 13 18 20 11 Hackware 3 | . . . . . . . . . 6 7 5 12 13 13 13 2 . 13 Protection 8 | . 3 14 21 22 20 11 7 5 . . 1 . . . . 1 . . Energy Cannon 2 | . . 18 6 . . . . . . . . . . . . . . . Ballistic Gun 8 | . 19 4 15 22 8 16 17 17 2 . . . . . . . . . Slashing Weapon 3 | . . . . . 4 . . . 5 15 13 8 . . 1 4 5 5 Peak Build Rating 119 | 6 9 14 22 23 48 41 52 71 78 80 87 101 100 100 105 111 107 119 Average Rating 54 | 4 7 12 19 22 27 40 44 56 70 79 81 96 97 98 98 99 104 111 On Entrance 58 | . 6 9 14 22 23 36 41 40 68 78 80 87 98 97 99 103 104 105 Naked Turns . | . . . . . . . . . . . . . . . . . . . Heaviest Build 74 | 10 48 54 65 59 74 70 71 63 21 17 25 25 19 19 21 21 21 27 Greatest Support 82 | 40 40 40 60 60 60 30 82 82 21 21 30 36 20 24 20 21 21 32 Greatest Overweight (x) 2 | . 1 1 1 . 2 2 2 1 . . 2 . . . 1 . . . Average Overweight (x) . | . . 1 . . . 2 . . . . . . . . . . . . Largest Inventory Capacity 40 | 8 20 20 20 20 20 20 20 40 40 40 40 40 40 40 40 40 40 40 Average Capacity 28 | 6 16 20 20 20 20 20 20 27 40 40 40 40 40 40 40 40 40 40 Most Carried 40 | 2 17 20 20 20 20 19 20 22 28 31 35 40 40 40 40 40 39 39 Average Carried 24 | 1 10 18 19 20 18 18 19 19 23 30 31 36 39 39 39 37 38 34 Final Capacity 40 | 8 20 20 20 20 20 20 20 40 40 40 40 40 40 40 40 40 40 40 Final Carried 40 | 2 17 20 20 20 20 18 20 22 28 31 33 40 39 40 40 38 39 31 Class Distribution -------------------- 46% | Mutant 23% | Hauler-Scout 11% | Hauler-Mutant 9% | Scavenger-Mutant 8% | Hauler-Sprinter Dominant Class ---------------- Mutant | -10/Materials Mutant | -10/Mines Mutant | -9/Materials Mutant | -9/Mines Mutant | -9/Exiles Scavenger-Mutant | -8/Mines Scavenger-Mutant | -8/Materials Mutant | -8/Storage Hauler-Sprinter | -7/Factory Hauler-Sprinter | -7/Waste Hauler-Mutant | -7/Factory Hauler-Scout | -6/Factory Hauler-Scout | -6/Lower Caves Hauler-Scout | -6/Lower Caves Hauler-Scout | -6/Zion Hauler-Scout | -6/Deep Caves Hauler-Scout | -5/Proximity Caves Hauler-Scout | -5/Factory Resources | -11 -10 -10 -9 -9 -9 -8 -8 -8 -7 -7 -7 -6 -6 -6 -6 -6 -5 -5 ----------- Run | Yrd Mat Min Mat Min Exi Min Mat Sto Fac Was Fac Fac Low Low Zio Dee Pro Fac Matter Collected 4997 | 207 157 40 696 100 112 4 665 1110 178 24 279 436 82 42 88 458 95 224 Remotely . | . . . . . . . . . . . . . . . . . . . Salvage Created 6425 | . 344 109 1178 145 162 101 945 1240 178 . 625 619 . 80 . 308 64 327 Parts 406 | . 19 7 85 11 3 5 47 58 18 . 52 43 . 6 . 26 . 26 Haulers Intercepted 13 | . . . 4 . . . 2 4 . . 1 1 . . . . . 1 Recyclers Shooed 5 | . . . . . . . 1 4 . . . . . . . . . . Parts Field Recycled . | . . . . . . . . . . . . . . . . . . . Retrieved Matter . | . . . . . . . . . . . . . . . . . . . Parts Self-Destructed 5 | . . . . . . . . . . . . . . 5 . . . . Prevented . | . . . . . . . . . . . . . . . . . . . Kills | -11 -10 -10 -9 -9 -9 -8 -8 -8 -7 -7 -7 -6 -6 -6 -6 -6 -5 -5 ------- Run | Yrd Mat Min Mat Min Exi Min Mat Sto Fac Was Fac Fac Low Low Zio Dee Pro Fac Combat Hostiles Destroyed 120 | . 6 2 24 3 7 3 17 16 2 . 12 11 . 4 . 5 2 6 Melee 16 | . . . . . 2 . . . 2 . 4 5 . . . 2 . 1 Guns 55 | . 6 . 13 3 . 2 15 16 . . . . . . . . . . Cannons 2 | . . 2 . . . . . . . . . . . . . . . . AOE 47 | . . . 11 . 5 1 2 . . . 8 6 . 4 . 3 2 5 Classes Destroyed 18 | . 3 1 7 1 2 . . 2 1 . . . . . . 1 . . Worker 15 | . 2 . 1 . . . 2 1 . . 6 1 . . . . . 2 Builder 4 | . . . 2 . . . . . . . 1 . . . . . . 1 Tunneler 4 | . . . . 1 . . . . 1 . . 2 . . . . . . Hauler 13 | . . . 4 . . . 2 4 . . 1 1 . . . . . 1 Recycler 7 | . . . 1 . . . 2 2 . . 2 . . . . . . . Mechanic 1 | . . 1 . . . . . . . . . . . . . . . . Operator 5 | . . . 1 . . . . . 2 . . 1 . . . . . 1 Turret 1 | . . . . . 1 . . . . . . . . . . . . . Watcher 5 | . 1 . . . . . . . 1 . . 1 . . . . . 2 Swarmer 29 | . . . 3 . . . 3 . . . 8 6 . 4 . . . 5 Grunt 47 | . 6 2 13 3 . 3 10 8 . . . . . . . . 2 . Brawler 1 | . . . . . . . . 1 . . . . . . . . . . Duelist 1 | . . . 1 . . . . . . . . . . . . . . . Sentry 17 | . . . 7 . . . 4 6 . . . . . . . . . . Hunter 1 | . . . . . . . . 1 . . . . . . . . . . Programmer 12 | . . . . . . . . . 2 . 4 5 . . . . . 1 Z-Technician 4 | . . . . . . . . . . . . . . . . 4 . . Z-Light 4 | . . . . . . . . . . . . . . . . 4 . . Decomposer 2 | . . . . . . . . . . . . . . 2 . . . . Assembled 7 | . . . . . 7 . . . . . . . . . . . . . Best Kill Streak 11 | . 3 2 11 2 6 3 4 3 2 . 7 4 . 4 . 4 2 6 Combat Bots Only 8 | . 2 2 8 2 6 3 4 3 1 . 4 4 . 4 . 3 2 5 Max Kills in Single Turn 5 | . 1 1 2 1 3 1 2 1 1 . 5 3 . 3 . 1 1 4 Gunslinging 1 | . . . 1 . . . . . . . . . . . . . . . Exploded 4 | . . . 2 . 3 1 2 . . . 3 3 . 3 . 1 1 4 Melee 1 | . . . . . 1 . . . 1 . 1 1 . . . 1 . 1 Uniques/NPCs Destroyed 2 | . . . . . 1 . . . . . . . . . . 1 . . 8R-AWN (-9/Exiles) Z-Imprinter (-6/Deep Caves) Combat | -11 -10 -10 -9 -9 -9 -8 -8 -8 -7 -7 -7 -6 -6 -6 -6 -6 -5 -5 -------- Run | Yrd Mat Min Mat Min Exi Min Mat Sto Fac Was Fac Fac Low Low Zio Dee Pro Fac Hostile Shots Fired 712 | . 43 9 69 19 64 15 94 86 30 . 124 100 . 2 . 20 1 36 Missed 246 | . 5 1 22 5 13 7 24 26 15 . 58 51 . 1 . 3 1 14 Hits 466 | . 38 8 47 14 51 8 70 60 15 . 66 49 . 1 . 17 . 22 Melee 3 | . . . 1 . 1 . . . . . . . . 1 . . . . Projectile 463 | . 38 8 46 14 50 8 70 60 15 . 66 49 . . . 17 . 22 Critical Strikes 34 | . 1 . 1 . 17 . 4 1 1 . 3 3 . . . 2 . 1 Damage Taken 7726 | . 519 96 596 181 1369 137 1079 844 198 . 821 652 . 8 . 804 . 422 Core 1474 | . 77 13 61 . 314 . 172 36 84 . 198 138 . . . 306 . 75 Absorbed by Shields . | . . . . . . . . . . . . . . . . . . . Regen/Repaired (Parts) 67 | . . . . . . . . . . . 21 . . . . . . 46 Core Remaining (%) 56 | 100 . 64 . . . 6 . 62 . . 59 . . . . . 47 . Volleys Fired 322 | . 32 6 61 12 4 8 67 102 4 . 6 5 . 4 . 6 3 2 Largest 2 | . 2 2 2 2 1 1 2 2 1 . 1 1 . 1 . 1 1 1 Hottest 136 | . 60 136 50 46 33 33 50 50 25 . 39 39 . 80 . 80 80 80 Shots Fired 603 | . 63 12 109 24 25 8 129 203 4 . 6 5 . 4 . 6 3 2 Gun 544 | . 63 . 99 24 21 4 126 203 4 . . . . . . . . . Cannon 12 | . . 12 . . . . . . . . . . . . . . . . Launcher 47 | . . . 10 . 4 4 3 . . . 6 5 . 4 . 6 3 2 Special . | . . . . . . . . . . . . . . . . . . . Kinetic 525 | . 44 . 99 24 21 4 126 203 4 . . . . . . . . . Thermal 31 | . 19 12 . . . . . . . . . . . . . . . . Explosive 40 | . . . 10 . 4 4 3 . . . 4 . . 4 . 6 3 2 Electromagnetic 7 | . . . . . . . . . . . 2 5 . . . . . . Robot Hit Streak 27 | . 23 27 22 7 14 4 16 12 2 . 3 5 . . . . . . Robot Miss Streak 6 | . 3 1 3 3 1 1 4 6 1 . . . . . . . . . Penetration Max . | . . . . . . . . . . . . . . . . . . . Secondary Targets 10 | . 1 . 3 1 . . 1 4 . . . . . . . . . . Max Gunslinging Chain 1 | . 1 . 1 1 . . 1 1 . . . . . . . . . . Autonomous 21 | . . . . . 21 . . . . . . . . . . . . . Shots Hit Robots 517 | . 51 9 77 16 43 4 97 118 11 . 28 33 . . . 12 . 18 Core Hits 297 | . 23 4 54 7 21 9 47 43 6 . 22 14 . 8 . 19 7 13 Critical Kills 3 | . . . 1 . . . . 2 . . . . . . . . . . Critical Parts Destroyed 1 | . . . 1 . . . . . . . . . . . . . . . Critical Strikes 20 | . . . 2 . 2 . . 2 1 . 4 7 . . . . . 2 Destroy 4 | . . . 2 . . . . 2 . . . . . . . . . . Sever 13 | . . . . . 2 . . . 1 . 4 4 . . . . . 2 Impale 3 | . . . . . . . . . . . . 3 . . . . . . Melee Attacks 376 | . . . . . 30 . . . 37 . 83 105 . . 2 29 . 90 Impact 3 | . . . . . . . . . . . . 1 . . 2 . . . Slashing 343 | . . . . . 26 . . . 37 . 83 88 . . . 19 . 90 Piercing 26 | . . . . . . . . . . . . 16 . . . 10 . . Sneak Attacks 32 | . . . . . 4 . . . 1 . 10 9 . . . 4 . 4 Combat Hostiles 1 | . . . . . . . . . . . . 1 . . . . . . Follow-up Attacks 8 | . . . . . 1 . . . 1 . 2 4 . . . . . . Damage Inflicted 16764 | . 453 191 2085 242 1615 301 1868 2008 439 . 1847 1962 . 664 . 1083 540 1466 Guns 5871 | . 453 . 1182 242 412 53 1487 2006 36 . . . . . . . . . Cannons 191 | . . 191 . . . . . . . . . . . . . . . . Explosions 5042 | . . . 903 . 569 248 378 . . . 517 394 . 664 . 333 540 496 Melee 5637 | . . . . . 634 . . . 403 . 1312 1568 . . . 750 . 970 Ramming 23 | . . . . . . . 3 2 . . 18 . . . . . . . Kinetic 5693 | . 275 . 1182 242 412 53 1487 2006 36 . . . . . . . . . Thermal 502 | . 178 191 . . . . . . . . 29 104 . . . . . . Explosive 4481 | . . . 903 . 569 248 378 . . . 350 . . 664 . 333 540 496 Electromagnetic 428 | . . . . . . . . . . . 138 290 . . . . . . Impact 82 | . . . . . . . . . . . . 82 . . . . . . Slashing 5030 | . . . . . 634 . . . 403 . 1312 1159 . . . 552 . 970 Piercing 525 | . . . . . . . . . . . . 327 . . . 198 . . Highest Corruption 6 | . . . . . . . 4 4 . . 4 5 5 5 5 . . 6 Average Corruption 3 | . . . . . . . 4 4 . . 2 2 5 5 5 . . 5 Corruption Purged . | . . . . . . . . . . . . . . . . . . . Corruption Blocked . | . . . . . . . . . . . . . . . . . . . Effects 93 | . . . . . . . 12 39 . . 11 22 . 5 2 . . 2 Message Errors 23 | . . . . . . . 2 10 . . . 9 . 1 . . . 1 Matter Fused 20 | . . . . . . . 2 10 . . 4 3 . 1 . . . . Heat Flow Errors 14 | . . . . . . . 3 4 . . 2 4 . . . . . 1 Energy Discharges 6 | . . . . . . . 1 4 . . 1 . . . . . . . Parts Rejected 1 | . . . . . . . . 1 . . . . . . . . . . Parts Fused 1 | . . . . . . . . 1 . . . . . . . . . . Data Loss (minor) 11 | . . . . . . . 2 2 . . 2 2 . 1 2 . . . Data Loss (major) 6 | . . . . . . . 1 1 . . 2 . . 2 . . . . Misfires 2 | . . . . . . . . 2 . . . . . . . . . . Alerts 5 | . . . . . . . . 1 . . . 4 . . . . . . Weapon Failures 4 | . . . . . . . 1 3 . . . . . . . . . . Overload Shots . | . . . . . . . . . . . . . . . . . . . Overflow Damage 1060 | . . . 24 . 6 . . . 53 . 225 415 . 62 . 213 . 62 Projectiles . | . . . . . . . . . . . . . . . . . . . Explosions 179 | . . . 24 . 6 . . . . . 16 50 . 62 . . . 21 Melee 881 | . . . . . . . . . 53 . 209 365 . . . 213 . 41 Knockbacks 1 | . . . . . . . . . . . 1 . . . . . . . Impact 1 | . . . . . . . . . . . 1 . . . . . . . Kinetic . | . . . . . . . . . . . . . . . . . . . Secondary . | . . . . . . . . . . . . . . . . . . . Self-Inflicted Damage 9 | . . . . . . . . . . . 9 . . . . . . . Shots . | . . . . . . . . . . . . . . . . . . . Rammed 3 | . . . . . . . 1 1 . . 1 . . . . . . . Targets Rammed 3 | . . . . . . . 1 1 . . 1 . . . . . . . Kicked . | . . . . . . . . . . . . . . . . . . . Crushed . | . . . . . . . . . . . . . . . . . . . Highest Temperature 465 | . 135 465 76 30 . 59 254 236 . . 156 184 . 44 . 264 135 269 Average Temperature 48 | . 51 188 23 9 . 40 45 44 . . 82 81 . 20 . 40 22 45 Received Heat Transfer 2097 | . 321 60 192 102 . 72 558 333 39 . 63 87 . . . 261 . 9 Effects 2 | . . . . . . . 1 . . . . . . . . . . 1 Interference 2 | . . . . . . . 1 . . . . . . . . . . 1 Siege Activations . | . . . . . . . . . . . . . . . . . . . Martial Activations . | . . . . . . . . . . . . . . . . . . . Shielding Activations . | . . . . . . . . . . . . . . . . . . . Robots Disrupted . | . . . . . . . . . . . . . . . . . . . Combat Hostiles . | . . . . . . . . . . . . . . . . . . . Robots Corrupted . | . . . . . . . . . . . . . . . . . . . Combat Hostiles . | . . . . . . . . . . . . . . . . . . . Parts Fried 2 | . . . . . . . . . . . . 2 . . . . . . Impact Corruptions . | . . . . . . . . . . . . . . . . . . . Robots Melted . | . . . . . . . . . . . . . . . . . . . Combat Hostiles . | . . . . . . . . . . . . . . . . . . . Parts Melted 4 | . 2 1 . . . . . . . . . . . . . 1 . . Heat Transferred 883 | . 400 333 . . . . . . . . 50 100 . . . . . . Parts Sabotaged . | . . . . . . . . . . . . . . . . . . . Parts Stolen . | . . . . . . . . . . . . . . . . . . . Parts Stripped . | . . . . . . . . . . . . . . . . . . . Power Chain Reactions 2 | . . . . . . . . . . . 1 1 . . . . . . Alert | -11 -10 -10 -9 -9 -9 -8 -8 -8 -7 -7 -7 -6 -6 -6 -6 -6 -5 -5 ------- Run | Yrd Mat Min Mat Min Exi Min Mat Sto Fac Was Fac Fac Low Low Zio Dee Pro Fac Maximum Alert Level 2 | . . . 2 1 . . . 1 1 . 1 . . . . . . 1 Low Security (%) 90 | 100 100 100 53 95 . 100 100 97 96 100 71 100 . . . . . 98 Level 1 6 | . . . 25 4 . . . 2 3 . 28 . . . . . . 1 Level 2 2 | . . . 21 . . . . . . . . . . . . . . . Level 3 . | . . . . . . . . . . . . . . . . . . . Level 4 . | . . . . . . . . . . . . . . . . . . . Level 5 . | . . . . . . . . . . . . . . . . . . . High Security . | . . . . . . . . . . . . . . . . . . . Max Security . | . . . . . . . . . . . . . . . . . . . Peak Influence 533 | . 50 78 533 204 . 95 123 206 285 96 274 183 . . . . . 254 Initial 204 | . . . . 204 . . 29 40 58 96 32 131 . . . . . . Average 87 | . 9 9 187 86 . 68 39 117 51 72 132 101 . . . . . 112 Influence Increases 5600 | . 219 140 866 107 . 95 535 595 601 . 707 764 . 90 . . 130 751 Destroy 0b10 Robot/C 2320 | . 120 100 520 80 . 60 340 320 40 . 240 220 . 80 . . 80 120 Destroy 0b10 Robot/NC 265 | . 15 5 45 5 . . 30 35 20 . 50 30 . . . . . 30 Destroy Leader 576 | . 32 20 138 20 . 10 84 108 22 . 42 64 . 10 . . 10 16 Allied During Kill 47 | . . 15 5 2 . . . . . . . . . . . . 25 . Successful Hack 389 | . 37 . 22 . . . 22 40 64 . 74 46 . . . . . 84 Disable Machine 195 | . . . 60 . . . 15 75 15 . 15 . . . . . . 15 Destroy Structure 413 | . . . 61 . . 25 14 2 20 . 76 59 . . . . . 156 Partial Spotted 285 | . . . 15 . . . . . 75 . 60 60 . . . . . 75 Lose Combat Pursuer 1110 | . 15 . . . . . 30 15 345 . 150 285 . . . . 15 255 Influence Decreases 5477 | . 219 140 341 632 . 20 512 565 452 231 484 852 108 95 68 . 130 628 Entered New Map 979 | . . . . 321 . . 46 58 70 181 14 138 68 15 68 . . . Time Decay 3983 | . 199 130 326 291 . 20 436 507 372 50 410 614 40 80 . . 90 418 Lost Part 220 | . 20 10 . . . . 30 . . . 50 80 . . . . . 30 Lost Ally 145 | . . . 15 20 . . . . 10 . 10 20 . . . . 40 30 Purge Threat 150 | . . . . . . . . . . . . . . . . . . 150 Squads Dispatched 64 | . . 2 4 . . . 2 10 11 . 11 15 . . . . . 9 Investigation 28 | . . 1 3 . . . 2 1 4 . 5 9 . . . . . 3 Extermination 16 | . . . . . . . . . 5 . 2 5 . . . . . 4 Reinforcement 11 | . . . 1 . . . . 2 2 . 4 1 . . . . . 1 Assault 1 | . . 1 . . . . . . . . . . . . . . . . Garrison 8 | . . . . . . . . 7 . . . . . . . . . 1 Intercept . | . . . . . . . . . . . . . . . . . . . Searches Triggered . | . . . . . . . . . . . . . . . . . . . Construction Impeded 2 | . . . . . . . . . . . 1 . . . . . . 1 Haulers Reinforced 2 | . . . . . . . . . . . 1 1 . . . . . . Active Scanning Responses . | . . . . . . . . . . . . . . . . . . . Cargo Convoy Interrupts . | . . . . . . . . . . . . . . . . . . . Stealth | -11 -10 -10 -9 -9 -9 -8 -8 -8 -7 -7 -7 -6 -6 -6 -6 -6 -5 -5 --------- Run | Yrd Mat Min Mat Min Exi Min Mat Sto Fac Was Fac Fac Low Low Zio Dee Pro Fac Distress Signals 19 | . 2 . 4 . . . 3 4 . . 2 3 . . . . . 1 Communications Jammed . | . . . . . . . . . . . . . . . . . . . Distress Signals . | . . . . . . . . . . . . . . . . . . . Times Spotted 309 | . 13 6 50 4 8 3 31 36 34 . 38 38 2 3 . 7 5 31 Peak Tracking Total 8 | . 3 4 5 2 8 3 5 4 8 . 8 6 4 3 . 3 4 8 Tactical Retreats 41 | . 1 . . . 2 . 2 1 9 . 7 10 1 . . . 1 7 Traps | -11 -10 -10 -9 -9 -9 -8 -8 -8 -7 -7 -7 -6 -6 -6 -6 -6 -5 -5 ------- Run | Yrd Mat Min Mat Min Exi Min Mat Sto Fac Was Fac Fac Low Low Zio Dee Pro Fac Traps Triggered 12 | . . . 1 . . . 1 1 3 . 2 1 . . . . . 3 Indirectly . | . . . . . . . . . . . . . . . . . . . Trap Hack Attempts . | . . . . . . . . . . . . . . . . . . . Triggered . | . . . . . . . . . . . . . . . . . . . Disarmed . | . . . . . . . . . . . . . . . . . . . Reprogrammed . | . . . . . . . . . . . . . . . . . . . Reused 1 | . . . . . 1 . . . . . . . . . . . . . Traps Extracted . | . . . . . . . . . . . . . . . . . . . Installed 1 | . . . . . 1 . . . . . . . . . . . . . Triggered . | . . . . . . . . . . . . . . . . . . . Most Traps Carried 4 | . . 4 4 2 2 . . . . . . . . . . . . . Machines | -11 -10 -10 -9 -9 -9 -8 -8 -8 -7 -7 -7 -6 -6 -6 -6 -6 -5 -5 ---------- Run | Yrd Mat Min Mat Min Exi Min Mat Sto Fac Was Fac Fac Low Low Zio Dee Pro Fac Machines Disabled 21 | . . . 4 . 4 . 1 5 1 . 1 . . . 3 1 . 1 Max in Single Turn 2 | . . . 1 . 2 . 1 1 1 . 1 . . . 1 . . 1 Garrison Access 5 | . . . . . . . . . . . 2 1 . . . . . 2 Machines Repaired . | . . . . . . . . . . . . . . . . . . . Machines Dismantled 5 | . . . . . . . . 2 . . . . . . 3 . . . Machines Sabotaged . | . . . . . . . . . . . . . . . . . . . Overloaded Fab Kills . | . . . . . . . . . . . . . . . . . . . Hacking | -11 -10 -10 -9 -9 -9 -8 -8 -8 -7 -7 -7 -6 -6 -6 -6 -6 -5 -5 --------- Run | Yrd Mat Min Mat Min Exi Min Mat Sto Fac Was Fac Fac Low Low Zio Dee Pro Fac Machines Accessed 102 | . 5 1 8 . 2 . 7 12 12 . 16 19 2 . . . . 18 Terminals 66 | . 5 . 6 . . . 6 12 9 . 8 10 . . . . . 10 Fabricators 17 | . . . . . . . . . 3 . 5 5 . . . . . 4 Repair Stations 4 | . . . 1 . . . . . . . 1 1 . . . . . 1 Recycling Units 1 | . . . 1 . . . . . . . . . . . . . . . Scanalyzers 3 | . . . . . . . 1 . . . . 2 . . . . . . Garrison Access 6 | . . . . . . . . . . . 2 1 . . . . . 3 Total Hacks 295 | . 16 1 18 . 2 . 24 31 34 . 34 66 8 . . . . 61 Successful 170 | . 9 1 6 . 2 . 10 17 16 . 20 47 8 . . . . 34 Failed 125 | . 7 . 12 . . . 14 14 18 . 14 19 . . . . . 27 Catastrophic 17 | . . . 3 . . . 1 3 3 . 2 3 . . . . . 2 Database Lockouts . | . . . . . . . . . . . . . . . . . . . Manual 154 | . 14 . 15 . 1 . 9 14 27 . 16 23 . . 1 . . 34 Terminals 200 | . 16 . 15 . . . 19 31 27 . 18 33 . . . . . 41 Fabricators 50 | . . . . . . . . . 7 . 11 21 . . . . . 11 Repair Stations 9 | . . . 2 . . . . . . . 3 2 . . . . . 2 Recycling Units 1 | . . . 1 . . . . . . . . . . . . . . . Scanalyzers 14 | . . . . . . . 5 . . . . 9 . . . . . . Garrison Access 10 | . . . . . . . . . . . 2 1 . . . . . 7 Terminal Hacks 66 | . 6 1 3 . 2 . 4 12 8 . 2 10 8 . . . . 10 Record 10 | . . . . . 1 . . . . . . 1 7 . . . . 1 Part Schematic 13 | . 2 . 1 . . . . 2 2 . 1 3 . . . . . 2 Robot Analysis 2 | . 2 . . . . . . . . . . . . . . . . . Prototype ID Bank 2 | . . . . . . . . 1 . . . . . . . . . 1 Open Door 6 | . . 1 . . . . . 4 . . . . 1 . . . . . Branch Access Points 4 | . . . . . . . 1 . 1 . . 1 . . . . . 1 Terminal Index 1 | . . . . . . . . . 1 . . . . . . . . . Fabricator Index 1 | . . . . . . . . . . . . 1 . . . . . . Alert Level 9 | . . . . . . . 1 2 2 . 1 2 . . . . . 1 Unreport Threat 1 | . . . . . . . . . . . . . . . . . . 1 Locate Traps 4 | . 1 . . . . . . 1 . . . 1 . . . . . 1 Dispatch Records 1 | . . . . . . . . . . . . . . . . . . 1 Maintenance Status 1 | . . . . . . . 1 . . . . . . . . . . . Patrol Status 1 | . . . . . . . . . 1 . . . . . . . . . Recall Investigation 2 | . . . . . . . . 1 . . . . . . . . . 1 Recall Extermination 2 | . . . . . . . . . 1 . . 1 . . . . . . Hauler Manifests 3 | . . . 1 . . . 1 1 . . . . . . . . . . Registered Components 2 | . 1 . 1 . . . . . . . . . . . . . . . Proto ID Catalog 1 | . . . . . 1 . . . . . . . . . . . . . Fabricator Hacks 28 | . . . . . . . . . . . 5 15 . . . . . 8 Network Status 1 | . . . . . . . . . . . . 1 . . . . . . Load Schematic 18 | . . . . . . . . . . . 4 9 . . . . . 5 Build 9 | . . . . . . . . . . . 1 5 . . . . . 3 Repair Station Hacks 5 | . . . . . . . . . . . 2 1 . . . . . 2 Scan Component 3 | . . . . . . . . . . . 1 1 . . . . . 1 Repair 2 | . . . . . . . . . . . 1 . . . . . . 1 Recycling Unit Hacks . | . . . . . . . . . . . . . . . . . . . Scanalyzer 13 | . . . . . . . 4 . . . . 9 . . . . . . Insert Component 6 | . . . . . . . 2 . . . . 4 . . . . . . Analyze 7 | . . . . . . . 2 . . . . 5 . . . . . . Garrison Access Hacks 5 | . . . . . . . . . . . 2 1 . . . . . 2 Seal Access 5 | . . . . . . . . . . . 2 1 . . . . . 2 Unauthorized Hacks 53 | . 3 . 3 . . . 2 5 8 . 9 11 . . . . . 12 Terminals 44 | . 3 . 3 . . . 2 5 6 . 8 7 . . . . . 10 Assimilate 14 | . 1 . . . . . . 1 2 . 2 3 . . . . . 5 Botnet 24 | . 1 . 2 . . . 1 3 3 . 5 4 . . . . . 5 Operators 6 | . 1 . 1 . . . 1 1 1 . 1 . . . . . . . Fabricators 9 | . . . . . . . . . 2 . 1 4 . . . . . 2 Recompile 9 | . . . . . . . . . 2 . 1 4 . . . . . 2 Repair Stations . | . . . . . . . . . . . . . . . . . . . Recycling Units . | . . . . . . . . . . . . . . . . . . . Scanalyzers . | . . . . . . . . . . . . . . . . . . . Garrison Access . | . . . . . . . . . . . . . . . . . . . Data Cores Recovered . | . . . . . . . . . . . . . . . . . . . Used . | . . . . . . . . . . . . . . . . . . . Hacking Detections 80 | . 5 . 7 . . . 7 11 11 . 12 17 . . . . . 10 Full Trace Events 18 | . 1 . 2 . . . 3 1 2 . 4 5 . . . . . . Feedback Events 3 | . . . . . . . . . . . 1 2 . . . . . . Corruption 3 | . . . . . . . . . . . 1 2 . . . . . . Feedback Blocked . | . . . . . . . . . . . . . . . . . . . Robot Schematics Acquired 3 | . . . . . . . . . . . . . . . 3 . . . Robots Built . | . . . . . . . . . . . . . . . . . . . Authchips . | . . . . . . . . . . . . . . . . . . . Time . | . . . . . . . . . . . . . . . . . . . Total Robot Build Rating . | . . . . . . . . . . . . . . . . . . . Part Schematics Acquired 34 | . 2 . 1 . . . 2 2 2 . 1 7 . . 15 . . 2 Parts Built 10 | . . . . . . . . . . . 1 6 . . . . . 3 Authchips 8 | . . . . . . . . . . . 1 4 . . . . . 3 Time 1150 | . . . . . . . . . . . 99 688 . . . . . 363 Total Part Build Rating 47 | . . . . . . . . . . . 2 32 . . . . . 13 Parts Repaired 2 | . . . . . . . . . . . 1 . . . . . . 1 Time 97 | . . . . . . . . . . . 37 . . . . . . 60 Parts Recycled . | . . . . . . . . . . . . . . . . . . . Recycled Matter . | . . . . . . . . . . . . . . . . . . . Retrieved Matter . | . . . . . . . . . . . . . . . . . . . Retrieved Components . | . . . . . . . . . . . . . . . . . . . Parts Scanalyzed 6 | . . . . . . . 2 . . . . 4 . . . . . . Part Schematics Acquired 6 | . . . . . . . 2 . . . . 4 . . . . . . Parts Damaged 1 | . . . . . . . . . . . . 1 . . . . . . Bothacking | -11 -10 -10 -9 -9 -9 -8 -8 -8 -7 -7 -7 -6 -6 -6 -6 -6 -5 -5 ------------ Run | Yrd Mat Min Mat Min Exi Min Mat Sto Fac Was Fac Fac Low Low Zio Dee Pro Fac Used RIF Installer . | . . . . . . . . . . . . . . . . . . . Robots Hacked 4 | . . . . . 4 . . . . . . . . . . . . . Non-combat 3 | . . . . . 3 . . . . . . . . . . . . . Combat 1 | . . . . . 1 . . . . . . . . . . . . . Robot Hacks Applied 4 | . . . . . 4 . . . . . . . . . . . . . parse_system 4 | . . . . . 4 . . . . . . . . . . . . . Relay Couplers Released . | . . . . . . . . . . . . . . . . . . . Fabnet Peak Effective % . | . . . . . . . . . . . . . . . . . . . Robots Rewired . | . . . . . . . . . . . . . . . . . . . Allies Hacked . | . . . . . . . . . . . . . . . . . . . Hacks Repelled . | . . . . . . . . . . . . . . . . . . . Allies | -11 -10 -10 -9 -9 -9 -8 -8 -8 -7 -7 -7 -6 -6 -6 -6 -6 -5 -5 -------- Run | Yrd Mat Min Mat Min Exi Min Mat Sto Fac Was Fac Fac Low Low Zio Dee Pro Fac Total Allies 21 | . . 3 . 1 . . . . 1 . 1 2 3 . 6 . . 4 Largest Group 6 | . . 3 3 1 . . . . 1 . 1 1 3 . 6 6 2 2 Highest-Rated Group 316 | . . 72 72 31 . . . . 10 . 10 10 93 . 316 316 124 26 Highest-Rated Ally 96 | . . 31 31 31 . . . . 10 . 10 10 31 . 96 96 96 26 Total Orders 2 | . . . . . . . . . . . . . . . . . . 2 STAY 2 | . . . . . . . . . . . . . . . . . . 2 Ally Attacks 171 | . . 15 17 10 . . . . . . . . . . . 117 12 . Total Damage 2528 | . . 255 254 209 . . . . . . . . . . . 1638 172 . Kills 17 | . . 3 2 1 . . . . . . . . . . . 8 3 . Allies Corrupted . | . . . . . . . . . . . . . . . . . . . Allies Melted . | . . . . . . . . . . . . . . . . . . . Intel | -11 -10 -10 -9 -9 -9 -8 -8 -8 -7 -7 -7 -6 -6 -6 -6 -6 -5 -5 ------- Run | Yrd Mat Min Mat Min Exi Min Mat Sto Fac Was Fac Fac Low Low Zio Dee Pro Fac Active Infowar (turns) 10469 | . 650 . . . 21 46 1421 1436 1246 112 999 2031 98 166 401 480 317 1045 Sensors 4269 | . . . . . . . 250 . . . . 1720 98 166 401 323 317 994 Seismic 2911 | . 650 . . . . . . . 1238 112 911 . . . . . . . Machine Analysis 9819 | . . . . . 21 46 1421 1436 1246 112 999 2031 98 166 401 480 317 1045 Robot Analysis Total 2 | . 2 . . . . . . . . . . . . . . . . . Derelict Logs Recovered 9 | . . 1 . 2 . . . . . . . . 1 1 2 . 2 . Drone Launches . | . . . . . . . . . . . . . . . . . . . Drone Recoveries . | . . . . . . . . . . . . . . . . . . . Exploration | -11 -10 -10 -9 -9 -9 -8 -8 -8 -7 -7 -7 -6 -6 -6 -6 -6 -5 -5 ------------- Run | Yrd Mat Min Mat Min Exi Min Mat Sto Fac Was Fac Fac Low Low Zio Dee Pro Fac Turns Passed 16944 | 68 994 1381 1715 857 1979 46 1573 1436 1246 112 999 2031 98 166 401 480 317 1045 Spaces Moved 18010 | 38 413 556 806 496 982 11 707 636 2572 384 1836 3126 206 532 976 866 627 2240 Core 2 | 2 . . . . . . . . . . . . . . . . . . Treads 4165 | 36 413 556 806 496 810 . 412 636 . . . . . . . . . . Legs 478 | . . . . . 172 11 295 . . . . . . . . . . . Wheels . | . . . . . . . . . . . . . . . . . . . Hover 4095 | . . . . . . . . . . . 997 3098 . . . . . . Flight 9270 | . . . . . . . . . 2572 384 839 28 206 532 976 866 627 2240 Fastest Speed 14 | 50 160 240 160 160 160 260 156 156 28 28 27 28 28 21 28 27 27 14 Average Speed 73 | 154 209 240 178 160 188 260 184 170 35 28 35 43 28 27 30 27 27 24 Slowest Speed 260 | 160 240 240 240 160 260 260 260 250 50 28 170 60 28 28 95 28 27 34 Overloaded Moves 93 | . . . . . . . . . . . 6 . . 40 . . . 47 Propulsion Burnouts 1 | . . . . . . . . . . . . . . . . . . 1 Robots Hopped 16 | . . . . . . . . . 6 . . . . . . . . 10 Potential Cave-ins . | . . . . . . . . . . . . . . . . . . . Cave-ins Triggered . | . . . . . . . . . . . . . . . . . . . Exploration Rate (%) 63 | 4 63 97 80 96 72 10 59 81 51 96 51 61 47 51 81 72 79 60 Regions Visited 18 Branch Regions 10 Pre-discovered Areas 6 | . . 1 . . 1 . . . . . . . . . 4 . . . Known Exits Taken 8 | . . . . . . . 1 1 . . . 1 1 1 1 1 1 . Unknown Exits Taken 8 | 1 1 1 1 1 1 1 . . . . 1 . . . . . . . Scrap Searched 18 | . . 3 . 2 . . . . . . . . 2 4 3 . 4 . Spaces Dug 218 | . . . 9 . . 8 . . 21 . 56 58 . . . 5 . 61 Terrain Destroyed 462 | . . . 67 . 33 36 12 . 21 . 76 63 . 38 . 12 27 77 Melee 189 | . . . . . . . . . 21 . 44 58 . . . 5 . 61 Projectile 8 | . . . . . 8 . . . . . . . . . . . . . AOE 265 | . . . 67 . 25 36 12 . . . 32 5 . 38 . 7 27 16 Terrain Rammed . | . . . . . . . . . . . . . . . . . . . Walls Destroyed . | . . . . . . . . . . . . . . . . . . . Machines Disabled . | . . . . . . . . . . . . . . . . . . . Actions | -11 -10 -10 -9 -9 -9 -8 -8 -8 -7 -7 -7 -6 -6 -6 -6 -6 -5 -5 --------- Run | Yrd Mat Min Mat Min Exi Min Mat Sto Fac Was Fac Fac Low Low Zio Dee Pro Fac Total 20574 | 45 489 594 996 538 1087 21 854 838 2843 387 2049 3614 245 544 1044 1053 769 2564 Wait 1236 | . 16 13 51 27 16 . 30 39 184 . 87 307 36 3 22 88 137 180 Move 17964 | 37 412 555 805 495 981 10 706 635 2560 383 1835 3125 205 531 975 865 626 2223 Hop 13 | . . . . . . . . . 6 . . . . . . . . 7 Pick Up 172 | 2 18 10 18 1 14 . 8 17 13 4 13 27 1 2 2 14 1 7 Fast Attach 69 | 6 1 . 3 . 4 . 18 6 6 . 4 1 . . 6 8 . 6 Attach 72 | . 3 2 2 . 8 2 2 1 7 . 6 16 . . . 9 . 14 Detach 54 | . 1 . 1 . 6 . 2 1 10 . 1 3 . . 1 15 . 13 Swap 107 | . 3 2 24 1 4 1 4 8 . . 11 31 2 3 3 6 2 2 Drop 123 | . 3 6 31 2 20 . 16 12 5 . . 6 1 1 6 12 . 2 Fire 322 | . 32 6 61 12 4 8 67 102 4 . 6 5 . 4 . 6 3 2 Melee 350 | . . . . . 29 . . . 33 . 74 93 . . 2 29 . 90 Ram 1 | . . . . . . . . . . . 1 . . . . . . . Kick . | . . . . . . . . . . . . . . . . . . . Crush 2 | . . . . . . . 1 1 . . . . . . . . . . Escape Stasis 44 | . . . . . . . . . 15 . 11 . . . . . . 18 Rewire 1 | . . . . . . . . . . . . . . . . 1 . . Trap 1 | . . . . . 1 . . . . . . . . . . . . . Miscellaneous 43 | . . . . . . . . 16 . . . . . . 27 . . . Route ------- -11/Scrapyard -10/Materials (discovered 2 exits: *Min / [*Sub]) -10/Mines (discovered 2 exits: *Mat x2) -9/Materials (discovered 4 exits: *Mat x2 / [*Min x2]) -9/Mines (discovered 3 exits: *Mat x2 / *Exi) -9/Exiles (discovered 2 exits: [*Min x2]) -8/Mines -8/Materials (discovered 5 exits: *Fac x3 / *Sto x2) -8/Storage (discovered 2 exits: *Fac / [*Rec]) -7/Factory (discovered 5 exits: *Fac x3 / Low x2) -7/Waste -7/Factory -6/Factory (discovered 5 exits: *Fac / *Low x2 / Ext x2) -6/Lower Caves -6/Lower Caves -6/Zion -6/Deep Caves -5/Proximity Caves -5/Factory (discovered 6 exits: *Fac x4 / *Upp x2) History --------- Turn | Location | Event 12 | -11/Scrapyard | Discovered new exit (range 14) 69 | -11/Scrapyard | Entered Materials 90 | -10/Materials | Discovered new exit (range 13) 302 | -10/Materials | Build established: Mutant 597 | -10/Materials | Discovered new exit (range 10) 669 | -10/Materials | Derelicts attacked the area 1063 | -10/Materials | Entered Mines 1067 | -10/Mines | Met a Derelict shopkeep closing up shop 1286 | -10/Mines | A weapon hastily lodged in a ceiling crevice suddenly fell to the ground 1400 | -10/Mines | Discovered new exit (range 6) 1506 | -10/Mines | Found a hidden stash of uninstalled traps 1748 | -10/Mines | Learned location of Zion (-6) 1798 | -10/Mines | Discovered new exit (range 14) 1809 | -10/Mines | Met a Derelict testing a Signal Generator 2444 | -10/Mines | Entered Materials 2444 | -9/Materials | Accompanied by 3 allies 2444 | -9/Materials | Evolved 2 slots: Propulsion x1, Utility x1 2449 | -9/Materials | Led the pair of lost Derelicts to an unsafe place 2664 | -9/Materials | Discovered new exit (range 9) 3151 | -9/Materials | Discovered new exit (range 8) 3235 | -9/Materials | Destroyed 8 combat bots 3590 | -9/Materials | Discovered new exit (range 16) 3947 | -9/Materials | Discovered new exit (range 16) 4159 | -9/Materials | Entered Mines 4162 | -9/Mines | Assembled infested the area 4177 | -9/Mines | Learned Materials stockpile data 4195 | -9/Mines | Received a Rocket Launcher from a helpful Derelict 4332 | -9/Mines | Discovered new exit (range 8) 4344 | -9/Mines | Received a Mining Laser from a helpful Derelict 4810 | -9/Mines | Learned location of 1 exit from Materials 4826 | -9/Mines | Discovered new exit (range 6) 5008 | -9/Mines | Deemed a non-threat by the Exiles lab entrance 5010 | -9/Mines | Discovered new exit (range 5) 5016 | -9/Mines | Entered Exiles 5040 | -9/Exiles | Discovered new exit (range 14) 5205 | -9/Exiles | Met 8R-AWN 5230 | -9/Exiles | Met EX-HEX 5289 | -9/Exiles | Met EX-DEC 5448 | -9/Exiles | Discovered new exit (range 10) 5552 | -9/Exiles | Met EX-BIN 5576 | -9/Exiles | Aligned with FarCom system 5577 | -9/Exiles | Given EX-Vault access code 5958 | -9/Exiles | Opened EX-Vault 5971 | -9/Exiles | Found Lightpack 2.0 5995 | -9/Exiles | Found AWS/Gauss 6031 | -9/Exiles | Warned to stay clear of 0b10 Research branches 6100 | -9/Exiles | Warned about trapping Exiles lab 6107 | -9/Exiles | Attacked by the Exiles 6170 | -9/Exiles | Destroyed 8R-AWN 6177 | -9/Exiles | Found 8R-AWN's Armor/EX 6179 | -9/Exiles | Found 8R-AWN's Boregun 6194 | -9/Exiles | Lost 4 parts (2p2n) 6195 | -9/Exiles | Found AS-neutralizer No. 17b 6354 | -9/Exiles | Found AWS/Autocannon 6472 | -9/Exiles | Core integrity fell below 50% 6536 | -9/Exiles | Core integrity fell below 20% 6995 | -9/Exiles | Stole three prototypes: Lightpack 2.0, AWS/Gauss, AWS/Autocannon 6995 | -9/Exiles | Entered Mines 7018 | -8/Mines | Discovered new exit (range 9) 7041 | -8/Mines | Entered Materials 7041 | -8/Materials | Evolved 2 slots: Propulsion x1, Utility x1 7042 | -8/Materials | Identified exit to Factory 7267 | -8/Materials | Build established: Scavenger-Mutant 7446 | -8/Materials | Discovered exit to Factory (range 6) 7640 | -8/Materials | Lost 3 parts (1n1u1w) 7796 | -8/Materials | Discovered new exit (range 16) 8402 | -8/Materials | Identified exit to Storage 8609 | -8/Materials | Discovered exit to Factory (range 8) 8614 | -8/Materials | Entered Storage 8957 | -8/Storage | Build established: Mutant 9127 | -8/Storage | Used back door to open Recycling access 9127 | -8/Storage | Discovered new exit (range 5) 9289 | -8/Storage | Garrison activated, responded to threat 9326 | -8/Storage | Discovered exit to Factory (range 14) 9421 | -8/Storage | Garrison activated, responded to threat 9598 | -8/Storage | Allied Derelicts emerged from ambush trap array 9764 | -8/Storage | Garrison activated, responded to threat 9800 | -8/Storage | Build established: Hauler-Mutant 10050 | -8/Storage | Entered Factory 10050 | -7/Factory | Evolved 2 slots: Utility x2 10068 | -7/Factory | Identified exit to Lower Caves 10101 | -7/Factory | Discovered new exit (range 13) 10477 | -7/Factory | Discovered new exit (range 7) 10569 | -7/Factory | Discovered new exit (range 15) 10827 | -7/Factory | Build established: Hauler-Sprinter 11296 | -7/Factory | Manually triggered Chute Trap 11296 | -7/Factory | Sucked down chute 11296 | -7/Factory | Entered Waste 11296 | -7/Waste | The area was eerily silent 11336 | -7/Waste | Found Prototype Launcher 11340 | -7/Waste | Discovered new exit (range 13) 11408 | -7/Waste | Entered Factory 11767 | -7/Factory | Lost 3 parts (2n1u) 11955 | -7/Factory | Fabricated Imp. Flight Unit? 11968 | -7/Factory | Identified Mni. Smartbomb Launcher 12030 | -7/Factory | Build established: Hauler-Mutant 12047 | -7/Factory | Repaired Broken Mni. Smartbomb Launcher 12387 | -7/Factory | Discovered new exit (range 16) 12407 | -7/Factory | Entered another Factory area 12407 | -6/Factory | Evolved 2 slots: Utility x2 12481 | -6/Factory | Discovered new exit (range 16) 12514 | -6/Factory | Identified exit to Lower Caves 12514 | -6/Factory | Identified exit to Extension 12704 | -6/Factory | Build established: Hauler-Scout 12830 | -6/Factory | Lost 3 parts (1n1u1w) 12834 | -6/Factory | Discovered new exit (range 5) 12835 | -6/Factory | Identified exit to Factory 12913 | -6/Factory | Fabricated Mni. Smartbomb Launcher? 13318 | -6/Factory | Spotted B-75 Beast 13695 | -6/Factory | Fabricated Cld. VTOL Module? 14015 | -6/Factory | Fabricated Cld. VTOL Module? 14220 | -6/Factory | Fabricated Cld. VTOL Module (x1) 14338 | -6/Factory | Fabricated Lrn. Sensor Array (x2) 14375 | -6/Factory | Lost 3 parts (3n) 14438 | -6/Factory | Entered Lower Caves 14439 | -6/Lower Caves | Found DCF Scrap (16 items) 14443 | -6/Lower Caves | Ambushed by wild Derelicts 14443 | -6/Lower Caves | Learned Factory security intel 14449 | -6/Lower Caves | Encountered a Warlord checkpoint 14483 | -6/Lower Caves | Entered an active Warlord outpost 14485 | -6/Lower Caves | A Commander dispatched an escort 14486 | -6/Lower Caves | Learned Research trap positions 14486 | -6/Lower Caves | Learned Extension trap positions 14486 | -6/Lower Caves | Learned Armory trap positions 14486 | -6/Lower Caves | Learned Extension stockpile data 14496 | -6/Lower Caves | Discovered new exit (range 12) 14499 | -6/Lower Caves | Identified exit to Lower Caves 14536 | -6/Lower Caves | Entered another Lower Caves area 14536 | -6/Lower Caves | Accompanied by 3 allies 14537 | -6/Lower Caves | Commander's escort returned to base 14537 | -6/Lower Caves | Commander's escort returned to base 14537 | -6/Lower Caves | Commander's escort returned to base 14540 | -6/Lower Caves | Learned Factory machine intel 14575 | -6/Lower Caves | Encountered a Warlord checkpoint 14598 | -6/Lower Caves | Spotted EL-W8G(f) 14598 | -6/Lower Caves | Spotted NI-34N(f) 14601 | -6/Lower Caves | Encountered a Master Thief 14621 | -6/Lower Caves | Encountered a Master Thief 14638 | -6/Lower Caves | Spotted 1G-7CC(f) 14639 | -6/Lower Caves | Encountered a Master Thief 14700 | -6/Lower Caves | Discovered new exit (range 6) 14701 | -6/Lower Caves | Identified exit to Zion 14702 | -6/Lower Caves | Entered Zion 14721 | -6/Zion | Gained Derelict followers 14765 | -6/Zion | System corruption cleaned by Quarantine Array 14811 | -6/Zion | Learned 4 Factory zone layouts 14836 | -6/Zion | Learned location of Armory (-3) 14883 | -6/Zion | Given A8's code to call for help 14891 | -6/Zion | Learned Factory emergency access door positions 14900 | -6/Zion | Found Prototype Launcher 14900 | -6/Zion | Identified Rocket Array 14902 | -6/Zion | Found Prototype Launcher 14902 | -6/Zion | Identified Gui. Missile Launcher 14916 | -6/Zion | Found Prototype Special Weapon 14916 | -6/Zion | Identified RU-N14's Throwing Claymores 14921 | -6/Zion | Found RU-N14's Throwing Claymores 14984 | -6/Zion | Enhanced Grunt warped into view, answering call for help 14999 | -6/Zion | Enhanced Grunt warped into view, answering call for help 15092 | -6/Zion | Discovered new exit (range 3) 15092 | -6/Zion | Saw the warning signs outside the Deep Caves entrance 15093 | -6/Zion | Identified exit to Deep Caves 15103 | -6/Zion | Entered Deep Caves 15103 | -6/Deep Caves | Accompanied by 6 allies 15238 | -6/Deep Caves | Attacked by Z-Imprinter 15263 | -6/Deep Caves | Destroyed Z-Imprinter 15293 | -6/Deep Caves | Lost 4 parts (2n2u) 15295 | -6/Deep Caves | Found Prototype Protection 15295 | -6/Deep Caves | Identified Zio. Weapon Casing 15333 | -6/Deep Caves | Z-Facility disabled 15408 | -6/Deep Caves | Core integrity fell below 50% 15419 | -6/Deep Caves | Found Zio. Weapon Casing 15435 | -6/Deep Caves | Lost 4 allies 15437 | -6/Deep Caves | Found Prototype Protection 15437 | -6/Deep Caves | Identified Zio. Heavy Carapace 15440 | -6/Deep Caves | Found Zio. Heavy Carapace 15496 | -6/Deep Caves | Discovered new exit (range 6) 15537 | -6/Deep Caves | Found Surveybot 24 Chip 15538 | -6/Deep Caves | Found Surveybot 24 Scanner 15574 | -6/Deep Caves | Identified exit to Proximity Caves 15583 | -6/Deep Caves | Entered Proximity Caves 15583 | -5/Proximity Caves | Accompanied by 2 allies 15724 | -5/Proximity Caves | Learned 12 Factory zone layouts 15725 | -5/Proximity Caves | Learned Factory stockpile data 15890 | -5/Proximity Caves | Discovered exit to Factory (range 11) 15900 | -5/Proximity Caves | Entered Factory 15900 | -5/Factory | Evolved 2 slots: Propulsion x1, Utility x1 15901 | -5/Factory | Identified exit to Upper Caves 15901 | -5/Factory | Identified exit to Factory 15905 | -5/Factory | Loaded intel: 253 machine locations 15966 | -5/Factory | Discovered exit to Factory (range 9) 15981 | -5/Factory | Discovered exit to Factory (range 6) 16043 | -5/Factory | Fabricated Cld. VTOL Module? 16190 | -5/Factory | Fabricated Imp. Hacking Suite? 16207 | -5/Factory | Garrison activated, responded to threat 16291 | -5/Factory | Discovered exit to Factory (range 9) 16678 | -5/Factory | Repaired Imp. VTOL Module? 16850 | -5/Factory | Fabricated Cld. VTOL Module? 16945 | -5/Factory | Self-destructed Last Messages --------------- 16892_ Stasis field depleted. 16893_ K-01 Serf collects debris. 16899_ Acquired 51 matter. 16900_ Acquired Mic. Fission Core. 16930_ Q4BBR:TS XNTLB>CV0CDBWFC 16933_ Acquired Unknown Processor. 16933_ Identified Melee Analysis Suite. Force Booster swallowed by quantum anomaly within Lightpack 2.0. Quantum anomaly discharges Machine Analyzer. 16934_ Discarded Melee Analysis Suite. 16938_ Acquired 13 matter. 16943_ ALERT: Potential suspicious activity detected, Programmers report to Factory Zone 6N. 16944_ Acquired Prototype Device. 16944_ Identified Prc. Energy Filter. 16944_ Faulty integration triggers meltdown. 16944_ Adv. Signal Interpreter damaged (-6). 16944_ Lrn. Sensor Array damaged (-6). AS-neutralizer No. 17b swallowed by quantum anomaly within Lightpack 2.0. 16945_ Subcomponent Replicator disabled. Map ----- +----------------------------------------------------+ | #??????????# #????# # """ #??? | | #??????????# #????# # """ #??? | | #??????????# ##???# # #??? | | ###????###########+#####"##### ###+######### | | * ^ | | | | | | | | ? """ "" "" | | #####??#####+##### """ "" "" """ ###+######## | | ?????????????????# """ """ """ """ # #?# | | "??????????"""""?# """ """ " # """ [ #?# | | "??????????"""""?# """ """ "F" # """ #?# | | "??????????"""???+ """ + """ #?# | | "????????????????# # #?# | | "????????????????# ! # " " ] #?# | | ??????????!??????############### # "G" #?# | | ????????????# ]] #????# # """ #?# | | ????????????+ ]] !###### # !#?# | | ?????????+??# ]] "" # p "###+#####?? | | ????????????# "" + ##?????????? | | ?????????+??# """p# ####+######? | | ?????????????????#""" "" ######A # #? | | ?????????????????#"Y "" #????# # #?? | | ?????????"""""""?#""" #????# g # #?? | | ?????????"""""""?# @#????# # #?? | | ?????????"""""""?#+########????# + #?? | | ?????????"""""""?# ########????# # #?? | | ?????????????????# # #????# # +?? | | ?????????????????# # """ #????# + #?? | | ????????????###### # "Y" ]######+#+#############?? | | ?????# ###### ## # "R" ## #???????? | | ???### k < # ?# """"""""" #???????? | | ??? ???##### ! # ???# #???????? | | ?? ??????### ##+###### """"""""" #???????? | | ??? ????????# + #???????? | | ??? ???????# ###### """"""""" #???????? | | ??? ???#####+## #????# #???????? | | ??? ??# ## #????# """"""""" #???????? | | ???? ??# ## u#????# #???????? | | ??# """ ?# """ ## #????# """"""""" #???????? | | ??# """ ?# """ + #????# #???????? | | ### """ # """ ## #######################???????? | | # # ## #???# ]] #???????????????? | | # / ## #???# ] #???????????????? | | # # [[[## ##### #???????????????? | | # ## [[[# ## #???????????????? | | # ?#! [[ # ######+#####???????????????? | | # ??# # < #???????????????????? | | # ???# # ###### #???????????????????? | +----------------------------------------------------+ Best States ------------- Heat Dissipation 45 Energy Generation 27 Energy Capacity 310 Matter Stores 300 Matter Capacity 300 Sight Range 16 Robot Scan Range 18 Terrain Scan Density 10 Additional Mass Support 12 Armor Coverage 1200 Resistance: TH 25 Weapon Shielding 100 Evasion (%) 72 Targeting Accuracy 8 Melee Accuracy 8 Recoil Reduction 4 Offensive Hacking 20 Defensive Hacking 26 Authchip Count 4 Item Schematics ----------------- Cargo Storage Unit | -10/Materials | Hacked Med. Storage Unit | -10/Materials | Hacked Huge Storage Unit | -9/Materials | Hacked Hacking Suite | -8/Materials | Scanalyzed System Shield | -8/Materials | Scanalyzed Imp. Hacking Suite | -8/Storage | Hacked Imp. Flight Unit | -8/Storage | Hacked Adv. Sensor Array | -7/Factory | Hacked Imp. Gravmag System | -7/Factory | Hacked Lyr. Light Armor Plating | -7/Factory | Hacked Cmb. Gravmag System | -6/Factory | Hacked Mni. Smartbomb Launcher | -6/Factory | Scanalyzed Imp. VTOL Module | -6/Factory | Scanalyzed Cold Fusion Reactor | -6/Factory | Scanalyzed Imp. Plasma Cutter | -6/Factory | Scanalyzed Cld. VTOL Module | -6/Factory | Hacked Lrn. Sensor Array | -6/Factory | Hacked Adv. Heat Sink | -6/Zion | Archive KE Penetrator | -6/Zion | Archive Plasma Rifle | -6/Zion | Archive Adv. Drone Bay | -6/Zion | Archive Proton Cannon | -6/Zion | Archive Hardcell Cannon | -6/Zion | Archive Hvy. Phase Cannon | -6/Zion | Archive Thermic Laser | -6/Zion | Archive Adv. Shield Generator | -6/Zion | Archive Enh. Optical Array | -6/Zion | Archive Matter Neutralizer | -6/Zion | Archive Arm. Medium Treads | -6/Zion | Archive Field Propulsion Drive | -6/Zion | Archive Imp. Trap Scanner | -6/Zion | Archive Imp. Thermal Generator | -6/Zion | Archive Adv. Hacking Suite | -5/Factory | Hacked Nanoactuators | -5/Factory | Hacked Robot Schematics ------------------ A-15 Conveyor | -6/Zion | Archive T-07 Excavator | -6/Zion | Archive G-47 Trooper | -6/Zion | Archive Fabricated ------------ Imp. Flight Unit | x1 | -7/Factory | Authchip Mni. Smartbomb Launcher | x1 | -6/Factory | Authchip Cld. VTOL Module | x1 | -6/Factory | Authchip Cld. VTOL Module | x1 | -6/Factory | Authchip Cld. VTOL Module | x1 | -6/Factory | Authchip Lrn. Sensor Array | x2 | -6/Factory Cld. VTOL Module | x1 | -5/Factory | Authchip Imp. Hacking Suite | x1 | -5/Factory | Authchip Cld. VTOL Module | x1 | -5/Factory | Authchip Repaired ---------- Mni. Smartbomb Launcher | 65% | -7/Factory | Broken Imp. VTOL Module | 8% | -5/Factory Alien Tech Used ----------------- None Achievements -------------- None Challenges ------------ None Game ------ Seed MultireflexIonicRailcannon Manual? 0 Play Time 03:29:13 Cumulative 421.7 hours Start 2025.06.20 @ 22:09:47 End 2025.06.21 @ 22:42:50 Sessions 5 Manual Loads 0 Difficulty Rogue Special Mode None Game No. 557 Rogue 557 Adventurer 0 Explorer 0 Win Type - Total 9 Types 6/1/1/1/0/0/0/0/0/0 Lore% 75 Gallery% 76 Achievement% 75 Wizard Run 0 Options --------- Layout 0 ASCII 0 Keyboard 1 Movement Numpad Keybinds 0 Fullscreen 2 Font 24/Smallcaps Map View 76x50 Zoom Use 0% Tactical HUD 1 Map Filters NONE Filters NONE Steam 1 RUN: 6b527774-24bd-4386-b958-1dcb412495a1